fUSD/lending_fUSD_20250225
["ID","MTS","AMOUNT","RATE_DAILY","PERIOD"]
[354480110,1740525063776,-500.0,0.00047123,120]
[354480111,1740525063786,-500.0,0.00047123,120]
[354480112,1740525063796,-500.0,0.00047123,120]
[354480113,1740525063806,-500.0,0.00047123,120]
[354480114,1740525063816,-500.0,0.00047123,120]
[354480115,1740525063827,-500.0,0.00047123,120]
[354480116,1740525063838,-500.0,0.00047123,120]
[354480117,1740525063848,-1303.54,0.00047123,120]
[354480118,1740525063858,-1208.28,0.00047123,120]
[354480119,1740525063869,-500.0,0.00047123,120]
[354480120,1740525063879,-500.0,0.00047123,120]
[354480121,1740525063891,-500.0,0.00047123,120]
[354480122,1740525063901,-500.0,0.00047123,120]
[354480123,1740525063911,-501.8285756,0.00047123,120]
[354480124,1740525063922,-500.0,0.00047123,120]
[354480125,1740525063932,-519.21,0.00047123,120]
[354480126,1740525063942,-926.21,0.00047123,120]
[354480127,1740525063952,-500.0,0.00047123,120]
[354480128,1740525063963,-1397.64,0.00047123,120]
[354480129,1740525063973,-500.0,0.00047123,120]
[354480130,1740525063983,-990.86,0.00047123,120]
[354480131,1740525063993,-865.85,0.00047123,120]
[354480132,1740525064003,-500.0,0.00047123,120]
[354480133,1740525064013,-500.0,0.00047123,120]
[354480134,1740525064023,-556.30225682,0.00047123,120]
[354480135,1740525064031,-500.0,0.00047123,120]
[354480136,1740525064041,-1052.77,0.00047123,120]
[354480137,1740525064050,-992.97,0.00047123,120]
[354480138,1740525064059,-500.0,0.00047123,120]
[354480139,1740525064067,-500.0,0.00047123,120]
[354480140,1740525064077,-500.0,0.00047123,120]
[354480141,1740525064085,-500.0,0.00047123,120]
[354480142,1740525064094,-500.0,0.00047123,120]
[354480143,1740525064104,-500.0,0.00047123,120]
[354480144,1740525064113,-500.0,0.00047123,120]
[354480145,1740525064123,-1375.47,0.00047123,120]
[354480146,1740525064132,-667.29,0.00047123,120]
[354480147,1740525064143,-572.28,0.00047123,120]
[354480148,1740525064153,-587.91,0.00047123,120]
[354480149,1740525064162,-517.27283159,0.00047123,120]
[354480150,1740525064172,-500.0,0.00047123,120]
[354480151,1740525064182,-500.0,0.00047123,120]
[354480152,1740525064192,-1632.82,0.00047123,120]
[354480153,1740525064203,-525.79,0.00047123,120]
[354480154,1740525064215,-500.0,0.00047123,120]
[354480155,1740525064226,-500.0,0.00047123,120]
[354480156,1740525064238,-500.0,0.00047123,120]
[354480157,1740525064249,-500.0,0.00047123,120]
[354480158,1740525064260,-700.38,0.00047123,120]
[354480159,1740525064272,-500.0,0.00047123,120]
[354480160,1740525064282,-150.01841246,0.00047123,120]
[354480161,1740525064293,-500.0,0.00047123,120]
[354480162,1740525064303,-1439.25,0.00047123,120]
[354480163,1740525064314,-500.0,0.00047123,120]
[354480164,1740525064325,-500.0,0.00047123,120]
[354480165,1740525064335,-500.0,0.00047123,120]
[354480166,1740525064346,-500.0,0.00047123,120]
[354480167,1740525064356,-500.0,0.00047123,120]
[354480168,1740525064366,-500.0,0.00047123,120]
[354480169,1740525064376,-500.0,0.00047123,120]
[354480170,1740525064389,-500.0,0.00047123,120]
[354480171,1740525064399,-500.0,0.00047123,120]
[354480172,1740525064409,-512.05091628,0.00047123,120]
[354480173,1740525064420,-500.0,0.00047123,120]
[354480174,1740525064431,-1112.37,0.00047123,120]
[354480175,1740525064442,-500.0,0.00047123,120]
[354480176,1740525064452,-500.0,0.00047123,120]
[354480177,1740525064466,-671.76,0.00047123,120]
[354480178,1740525064477,-500.0,0.00047123,120]
[354480179,1740525064487,-500.0,0.00047123,120]
[354480180,1740525064498,-500.0,0.00047123,120]
[354480181,1740525064510,-1287.45,0.00047123,120]
[354480182,1740525064520,-500.0,0.00047123,120]
[354480183,1740525064530,-1660.96,0.00047123,120]
[354480184,1740525064542,-563.69,0.00047123,120]
[354480185,1740525064552,-500.0,0.00047123,120]
[354480186,1740525064562,-500.0,0.00047123,120]
[354480187,1740525064572,-500.0,0.00047123,120]
[354480188,1740525064582,-549.26968555,0.00047123,120]
[354480189,1740525064592,-500.0,0.00047123,120]
[354480190,1740525064602,-535.69,0.00047123,60]
[354480191,1740525064612,-500.0,0.00047123,120]
[354480192,1740525064622,-500.0,0.00047123,120]
[354480193,1740525064633,-1565.68,0.00047123,120]
[354480194,1740525064647,-530.26,0.00047123,120]
[354480195,1740525064657,-500.0,0.00047123,120]
[354480196,1740525064667,-500.0,0.00047123,120]
[354480197,1740525064677,-405.50707,0.00047123,120]
[354480198,1740525064687,-500.0,0.00047123,120]
[354480199,1740525064697,-500.0,0.00047123,120]
[354480200,1740525064707,-1581.42,0.00047123,120]
[354480201,1740525064718,-500.0,0.00047123,120]
[354480202,1740525064728,-500.0,0.00047123,120]
[354480203,1740525064738,-500.0,0.00047123,120]
[354480204,1740525064748,-500.0,0.00047123,120]
[354480205,1740525064758,-827.4,0.00047123,120]
[354480206,1740525064768,-720.88,0.00047123,120]
[354480207,1740525064778,-519.16,0.00047123,120]
[354480208,1740525064788,-950.592313,0.00047123,120]
[354480209,1740525064798,-1460.84,0.00047123,120]
[354480210,1740525064808,-708.99,0.00047123,120]
[354480211,1740525064817,-500.0,0.00047123,120]
[354480212,1740525064827,-508.69,0.00047123,120]
[354480213,1740525064839,-500.0,0.00047123,120]
[354480214,1740525064849,-151.0,0.00047123,14]
[354480215,1740525064860,-935.68,0.00047123,120]
[354480216,1740525064871,-500.0,0.00047123,120]
[354480217,1740525065158,-547.34,0.00047123,120]
[354480218,1740525065167,-500.0,0.00047123,120]
[354480219,1740525065177,-500.0,0.00047123,120]
[354480220,1740525065186,-500.0,0.00047123,120]
[354480221,1740525065196,-151.0,0.00047123,14]
[354480222,1740525065205,-1341.71,0.00047123,120]
[354480223,1740525065215,-500.0,0.00047123,120]
[354480224,1740525065224,-500.0,0.00047123,120]
[354480225,1740525065234,-1371.41,0.00047123,120]
[354480226,1740525065243,-581.33898325,0.00047123,120]
[354480227,1740525065253,-500.0,0.00047123,120]
[354480228,1740525065262,-500.0,0.00047123,120]
[354480229,1740525065272,-500.0,0.00047123,120]
[354480230,1740525065281,-501.0906515,0.00047123,120]
[354480231,1740525065291,-879.83,0.00047123,120]
[354480232,1740525065300,-500.0,0.00047123,120]
[354480233,1740525065309,-605.97,0.00047123,120]
[354480234,1740525065319,-418.92845179,0.00047123,120]
[354480235,1740525065329,-500.0,0.00047123,120]
[354480236,1740525065338,-759.66,0.00047123,120]
[354480237,1740525065348,-500.0,0.00047123,120]
[354480238,1740525065357,-500.0,0.00047123,120]
[354480239,1740525065367,-477.14674899,0.00047123,120]
[354480240,1740525065376,-500.0,0.00047123,120]
[354480241,1740525065386,-936.21,0.00047123,120]
[354480242,1740525065397,-543.08,0.00047123,120]
[354480243,1740525065407,-2396.25,0.00047123,120]
[354480244,1740525065417,-2160.09,0.00047123,120]
[354480245,1740525065427,-496.41635121,0.00047123,120]
[354480246,1740525065436,-751.81,0.00047123,120]
[354480247,1740525065445,-500.0,0.00047123,120]
[354480248,1740525065455,-500.0,0.00047123,120]
[354480249,1740525065466,-500.0,0.00047123,120]
[354480250,1740525065478,-904.09,0.00047123,120]
[354480251,1740525065488,-500.0,0.00047123,120]
[354480252,1740525065497,-500.0,0.00047123,120]
[354480253,1740525065507,-500.0,0.00047123,120]
[354480254,1740525065517,-676.52,0.00047123,120]
[354480255,1740525065526,-500.0,0.00047123,120]
[354480256,1740525065536,-151.0,0.00047123,7]
[354480257,1740525065548,-1146.29,0.00047123,120]
[354480258,1740525065558,-1178.84,0.00047123,120]
[354480259,1740525065567,-619.35,0.00047123,120]
[354480260,1740525065578,-500.0,0.00047123,120]
[354480261,1740525065588,-500.0,0.00047123,120]
[354480262,1740525065598,-536.61,0.00047123,120]
[354480263,1740525065608,-500.0,0.00047123,120]
[354480264,1740525065617,-3083.43,0.00047123,120]
[354480265,1740525065626,-897.05,0.00047123,120]
[354480266,1740525065636,-151.0,0.00047123,7]
[354480267,1740525065647,-501.26201748,0.00047123,120]
[354480268,1740525065657,-500.0,0.00047123,120]
[354480269,1740525065667,-500.0,0.00047123,120]
[354480270,1740525065676,-849.71,0.00047123,120]
[354480271,1740525065686,-1948.33,0.00047123,120]
[354480272,1740525065696,-500.0,0.00047123,120]
[354480273,1740525065706,-1378.91,0.00047123,120]
[354480274,1740525065715,-500.0,0.00047123,120]
[354480275,1740525065725,-633.92,0.00047123,120]
[354480276,1740525065735,-500.0,0.00047123,120]
[354480277,1740525065745,-764.46,0.00047123,120]
[354480278,1740525065755,-500.0,0.00047123,120]
[354480279,1740525065764,-500.0,0.00047123,120]
[354480280,1740525065774,-151.0,0.00047123,14]
[354480281,1740525065783,-500.0,0.00047123,120]
[354480282,1740525065793,-907.54,0.00047123,120]
[354480283,1740525065803,-1479.7,0.00047123,120]
[354480284,1740525065812,-500.0,0.00047123,120]
[354480285,1740525065822,-500.0,0.00047123,120]
[354480286,1740525065831,-654.14,0.00047123,120]
[354480287,1740525065841,-500.0,0.00047123,120]
[354480288,1740525065851,-500.0,0.00047123,120]
[354480289,1740525065860,-990.79,0.00047123,120]
[354480290,1740525065869,-500.0,0.00047123,120]
[354480291,1740525065879,-651.65,0.00047123,120]
[354480292,1740525065891,-554.23,0.00047123,120]
[354480293,1740525065900,-814.5,0.00047123,120]
[354480294,1740525065910,-1490.61,0.00047123,120]
[354480295,1740525065920,-968.7,0.00047123,120]
[354480296,1740525065929,-1502.05,0.00047123,120]
[354480297,1740525065939,-820.79,0.00047123,120]
[354480298,1740525065949,-705.36,0.00047123,120]
[354480299,1740525065960,-1726.41,0.00047123,120]
[354480300,1740525065969,-500.0,0.00047123,120]
[354480301,1740525065979,-500.0,0.00047123,120]
[354480302,1740525065988,-500.0,0.00047123,120]
[354480303,1740525065998,-500.0,0.00047123,120]
[354480304,1740525066008,-167.88179631,0.00047123,120]
[354480305,1740525066017,-500.0,0.00047123,120]
[354480306,1740525066027,-2905.66,0.00047123,120]
[354480307,1740525066037,-151.0,0.00047123,14]
[354480308,1740525066047,-830.57,0.00047123,120]
[354480309,1740525066057,-500.0,0.00047123,120]
[354480310,1740525066066,-500.0,0.00047123,120]
[354480311,1740525066075,-500.0,0.00047123,120]
[354480312,1740525066085,-800.38,0.00047123,120]
[354480313,1740525066094,-500.0,0.00047123,120]
[354480314,1740525066104,-500.0,0.00047123,120]
[354480315,1740525066113,-961.86,0.00047123,120]
[354480316,1740525066123,-2752.83,0.00047123,120]
[354480317,1740525066132,-500.0,0.00047123,120]
[354480318,1740525066143,-1818.4,0.00047123,120]
[354480319,1740525066153,-500.0,0.00047123,120]
[354480320,1740525066163,-500.0,0.00047123,120]
[354480321,1740525066173,-500.0,0.00047123,120]
[354480322,1740525066182,-657.75,0.00047123,120]
[354480323,1740525066192,-1159.26,0.00047123,120]
[354480324,1740525066202,-500.0,0.00047123,120]
[354480325,1740525066212,-151.0,0.00047123,14]
[354480326,1740525066222,-521.7211753,0.00047123,120]
[354480327,1740525066232,-827.7,0.00047123,120]
[354480328,1740525066241,-500.63,0.00047123,120]
[354480329,1740525066251,-2444.54,0.00047123,120]
[354480330,1740525066261,-601.43,0.00047123,120]
[354480331,1740525066270,-500.0,0.00047123,120]
[354480332,1740525066280,-500.0,0.00047123,120]
[354480333,1740525066289,-500.0,0.00047123,120]
[354480334,1740525066299,-523.24,0.00047123,120]
[354480335,1740525066308,-500.0,0.00047123,120]
[354480336,1740525066319,-500.0,0.00047123,120]
[354480337,1740525066329,-2054.81,0.00047123,120]
[354480338,1740525066338,-867.84,0.00047123,120]
[354480339,1740525066349,-593.24,0.00047123,120]
[354480340,1740525066358,-500.0,0.00047123,120]
[354480341,1740525066368,-500.0,0.00047123,120]
[354480342,1740525066377,-1000.0,0.00047123,60]
[354480343,1740525066387,-500.0,0.00047123,120]
[354480344,1740525066399,-500.0,0.00047123,120]
[354480345,1740525066408,-1500.09,0.00047123,120]
[354480346,1740525066418,-500.0,0.00047123,120]
[354480347,1740525066427,-1540.89,0.00047123,120]
[354480348,1740525066437,-2723.23,0.00047123,120]
[354480349,1740525066447,-500.0,0.00047123,120]
[354480350,1740525066457,-523.26690105,0.00047123,120]
[354480351,1740525066471,-625.53572203,0.00047123,120]
[354480352,1740525066480,-816.58,0.00047123,120]
[354480353,1740525066490,-500.0,0.00047123,2]
[354480354,1740525066500,-859.93,0.00047123,120]
[354480355,1740525066510,-1544.98,0.00047123,120]
[354480356,1740525066520,-500.0,0.00047123,120]
[354480357,1740525066530,-500.0,0.00047123,120]
[354480358,1740525066540,-1310.03,0.00047123,120]
[354480359,1740525066549,-1069.0,0.00047123,120]
[354480360,1740525066559,-500.0,0.00047123,120]
[354480361,1740525066569,-2251.53,0.00047123,120]
[354480362,1740525066578,-500.0,0.00047123,120]
[354480363,1740525066588,-500.0,0.00047123,120]
[354480364,1740525066598,-1240.67,0.00047123,120]
[354480365,1740525066607,-500.0,0.00047123,120]
[354480366,1740525066617,-590.82,0.00047123,120]
[354480367,1740525066626,-500.0,0.00047123,120]
[354480368,1740525066636,-500.0,0.00047123,120]
[354480369,1740525066647,-500.0,0.00047123,120]
[354480370,1740525066656,-246.47965886,0.00047123,120]
[354480371,1740525066666,-909.23,0.00047123,120]
[354480372,1740525066675,-182.723892,0.00047123,14]
[354480373,1740525066686,-166.380624,0.00047123,14]
[354480374,1740525066696,-1483.83,0.00047123,120]
[354480375,1740525066705,-182.723892,0.00047123,14]
[354480376,1740525066714,-1575.15,0.00047123,120]
[354480377,1740525066724,-166.380624,0.00047123,14]
[354480378,1740525066733,-500.0,0.00047123,120]
[354480379,1740525066743,-1677.48,0.00047123,120]
[354480380,1740525066754,-500.0,0.00047123,120]
[354480381,1740525066763,-500.0,0.00047123,120]
[354480382,1740525066773,-500.0,0.00047123,120]
[354480383,1740525066783,-500.0,0.00047123,120]
[354480384,1740525066793,-500.0,0.00047123,120]
[354480385,1740525066803,-760.61,0.00047123,120]
[354480386,1740525066812,-500.0,0.00047123,120]
[354480387,1740525066822,-500.0,0.00047123,120]
[354480388,1740525066832,-500.0,0.00047123,120]
[354480389,1740525066843,-1561.03,0.00047123,120]
[354480390,1740525066852,-533.35,0.00047123,120]
[354480391,1740525066862,-691.08,0.00047123,120]
[354480392,1740525066871,-500.0,0.00047123,120]
[354480393,1740525066881,-2537.5,0.00047123,120]
[354480394,1740525066892,-500.0,0.00047123,120]
[354480395,1740525066901,-866.4,0.00047123,120]
[354480396,1740525066911,-1461.79,0.00047123,120]
[354480397,1740525066921,-500.0,0.00047123,120]
[354480398,1740525066930,-500.0,0.00047123,120]
[354480399,1740525066940,-500.0,0.00047123,120]
[354480400,1740525066950,-500.0,0.00047123,120]
[354480401,1740525066960,-2958.25,0.00047123,120]
[354480402,1740525066969,-524.63,0.00047123,120]
[354480403,1740525066979,-601.52,0.00047123,120]
[354480404,1740525066988,-1000.0,0.00047123,45]
[354480405,1740525066998,-500.0,0.00047123,120]
[354480406,1740525067008,-318.33462499,0.00047123,120]
[354480407,1740525067017,-1611.2,0.00047123,120]
[354480408,1740525067026,-500.0,0.00047123,120]
[354480409,1740525067036,-2032.36,0.00047123,30]
[354480410,1740525067045,-151.0,0.00047123,14]
[354480411,1740525067055,-2115.47,0.00047123,120]
[354480412,1740525067064,-500.0,0.00047123,120]
[354480413,1740525067073,-1849.32,0.00047123,120]
[354480414,1740525067083,-720.68,0.00047123,120]
[354480415,1740525067092,-1039.9,0.00047123,120]
[354480416,1740525067102,-335.87034184,0.00047123,120]
[354480417,1740525067111,-151.0,0.00047123,14]
[354480418,1740525067120,-500.0,0.00047123,120]
[354480419,1740525067130,-500.0,0.00047123,120]
[354480420,1740525067139,-151.0,0.00047123,14]
[354480421,1740525067150,-554.43,0.00047123,120]
[354480422,1740525067160,-720.96,0.00047123,120]
[354480423,1740525067169,-500.0,0.00047123,120]
[354480424,1740525067179,-811.37,0.00047123,120]
[354480425,1740525067189,-151.0,0.00047123,14]
[354480426,1740525067198,-3035.12,0.00047123,120]
[354480427,1740525067207,-868.28,0.00047123,120]
[354480428,1740525067216,-151.0,0.00047123,14]
[354480429,1740525067226,-500.0,0.00047123,120]
[354480430,1740525067235,-500.0,0.00047123,120]
[354480431,1740525067244,-500.0,0.00047123,120]
[354480432,1740525067253,-500.0,0.00047123,120]
[354480433,1740525067261,-2195.82,0.00047123,120]
[354480434,1740525067270,-500.0,0.00047123,120]
[354480435,1740525067278,-500.0,0.00047123,120]
[354480436,1740525067285,-930.8,0.00047123,120]
[354480437,1740525067294,-500.0,0.00047123,120]
[354480438,1740525067304,-500.0,0.00047123,120]
[354480439,1740525067314,-500.0,0.00047123,120]
[354480440,1740525067327,-701.76,0.00047123,120]
[354480441,1740525067350,-500.0,0.00047123,120]
[354480442,1740525067365,-500.0,0.00047123,120]
[354480443,1740525067374,-500.0,0.00047123,120]
[354480444,1740525067384,-646.64,0.00047123,120]
[354480445,1740525067394,-2520.76,0.00047123,120]
[354480446,1740525067404,-1280.1,0.00047123,120]
[354480447,1740525067413,-2539.43,0.00047123,120]
[354480448,1740525067423,-500.0,0.00047123,120]
[354480449,1740525067432,-570.3,0.00047123,120]
[354480450,1740525067441,-500.0,0.00047123,120]
[354480451,1740525067450,-500.0,0.00047123,120]
[354480452,1740525067460,-500.0,0.00047123,120]
[354480453,1740525067470,-151.0,0.00047123,14]
[354480454,1740525067558,-151.0,0.00047123,14]
[354480455,1740525067567,-500.0,0.00047123,120]
[354480456,1740525067577,-546.75,0.00047123,120]
[354480457,1740525067586,-3136.51,0.00047123,120]
[354480458,1740525067595,-500.0,0.00047123,120]
[354480459,1740525067604,-976.16,0.00047123,120]
[354480460,1740525067614,-500.0,0.00047123,120]
[354480461,1740525067623,-500.0,0.00047123,120]
[354480462,1740525067632,-510.96756753,0.00047123,120]
[354480463,1740525067642,-583.37,0.00047123,30]
[354480464,1740525067652,-1269.74,0.00047123,120]
[354480465,1740525067662,-500.0,0.00047123,120]
[354480466,1740525067671,-2849.14,0.00047123,120]
[354480467,1740525067680,-500.0,0.00047123,120]
[354480468,1740525067689,-828.94,0.00047123,120]
[354480469,1740525067699,-607.67,0.00047123,120]
[354480470,1740525067708,-500.0,0.00047123,120]
[354480471,1740525067717,-500.0,0.00047123,120]
[354480472,1740525067726,-666.23,0.00047123,120]
[354480473,1740525067735,-1035.28,0.00047123,120]
[354480474,1740525067744,-500.0,0.00047123,120]
[354480475,1740525067753,-500.0,0.00047123,120]
[354480476,1740525067762,-500.0,0.00047123,120]
[354480477,1740525067771,-500.0,0.00047123,120]
[354480478,1740525067781,-2106.09,0.00047123,120]
[354480479,1740525067791,-500.0,0.00047123,120]
[354480480,1740525067800,-500.0,0.00047123,120]
[354480481,1740525067810,-500.0,0.00047123,120]
[354480482,1740525067819,-859.48,0.00047123,120]
[354480483,1740525067828,-500.0,0.00047123,120]
[354480484,1740525067838,-500.0,0.00047123,120]
[354480485,1740525067848,-671.37,0.00047123,120]
[354480486,1740525067857,-1056.87,0.00047123,120]
[354480487,1740525067866,-500.0,0.00047123,120]
[354480488,1740525067875,-500.0,0.00047123,120]
[354480489,1740525067885,-1808.78,0.00047123,120]
[354480490,1740525067894,-547.53,0.00047123,120]
[354480491,1740525067904,-500.0,0.00047123,120]
[354480492,1740525067913,-500.0,0.00047123,120]
[354480493,1740525067922,-500.0,0.00047123,120]
[354480494,1740525067931,-500.0,0.00047123,120]
[354480495,1740525067940,-1200.07,0.00047123,120]
[354480496,1740525067949,-842.62,0.00047123,120]
[354480497,1740525067959,-500.0,0.00047123,120]
[354480498,1740525067968,-500.0,0.00047123,120]
[354480499,1740525067977,-739.84,0.00047123,120]
[354480500,1740525067986,-500.0,0.00047123,120]
[354480501,1740525067995,-500.0,0.00047123,120]
[354480502,1740525068004,-1464.08,0.00047123,120]
[354480503,1740525068013,-1838.31,0.00047123,120]
[354480504,1740525068022,-500.0,0.00047123,120]
[354480505,1740525068031,-500.0,0.00047123,120]
[354480506,1740525068041,-480.41900631,0.00047123,120]
[354480507,1740525068050,-670.26,0.00047123,120]
[354480508,1740525068060,-500.0,0.00047123,120]
[354480509,1740525068069,-500.0,0.00047123,120]
[354480510,1740525068078,-605.29,0.00047123,120]
[354480511,1740525068087,-1098.29,0.00047123,120]
[354480512,1740525068097,-500.0,0.00047123,120]
[354480513,1740525068106,-867.36,0.00047123,120]
[354480514,1740525068115,-741.95,0.00047123,120]
[354480515,1740525068124,-662.58,0.00047123,120]
[354480516,1740525068134,-2788.075669,0.00047123,14]
[354480517,1740525068144,-2788.075669,0.00047123,14]
[354480518,1740525068153,-500.0,0.00047123,120]
[354480519,1740525068163,-3589.26,0.00047123,120]
[354480520,1740525068172,-500.0,0.00047123,120]
[354480521,1740525068181,-558.28,0.00047123,120]
[354480522,1740525068191,-1842.112405,0.00047123,14]
[354480523,1740525068200,-1465.97,0.00047123,120]
[354480524,1740525068210,-342.56583911,0.00047123,120]
[354480525,1740525068219,-500.0,0.00047123,120]
[354480526,1740525068228,-500.0,0.00047123,120]
[354480527,1740525068237,-1842.112405,0.00047123,14]
[354480528,1740525068246,-500.0,0.00047123,120]
[354480529,1740525068255,-1268.64,0.00047123,120]
[354480530,1740525068265,-500.0,0.00047123,120]
[354480531,1740525068275,-500.0,0.00047123,120]
[354480532,1740525068284,-597.88,0.00047123,120]
[354480533,1740525068293,-341.981363,0.00047123,14]
[354480534,1740525068303,-341.981363,0.00047123,14]
[354480535,1740525068312,-1357.06,0.00047123,120]
[354480536,1740525068322,-341.981363,0.00047123,14]
[354480537,1740525068332,-341.981363,0.00047123,14]
[354480538,1740525068341,-500.0,0.00047123,120]
[354480539,1740525068350,-500.0,0.00047123,120]
[354480540,1740525068360,-500.0,0.00047123,120]
[354480541,1740525068369,-500.0,0.00047123,120]
[354480542,1740525068378,-500.0,0.00047123,120]
[354480543,1740525068388,-500.0,0.00047123,120]
[354480544,1740525068399,-531.93,0.00047123,120]
[354480545,1740525068408,-1200.48,0.00047123,120]
[354480546,1740525068417,-500.0,0.00047123,120]
[354480547,1740525068426,-500.0,0.00047123,120]
[354480548,1740525068435,-500.0,0.00047123,120]
[354480549,1740525068444,-1210.5,0.00047123,120]
[354480550,1740525068453,-1440.59,0.00047123,120]
[354480551,1740525068464,-469.31318496,0.00047123,120]
[354480552,1740525068473,-501.97600003,0.00047123,120]
[354480553,1740525068482,-1686.17,0.00047123,120]
[354480554,1740525068491,-788.39,0.00047123,120]
[354480555,1740525068500,-151.0,0.00047123,14]
[354480556,1740525068510,-500.0,0.00047123,120]
[354480557,1740525068519,-925.32,0.00047123,120]
[354480558,1740525068529,-500.0,0.00047123,120]
[354480559,1740525068538,-503.26,0.00047123,120]
[354480560,1740525068547,-500.0,0.00047123,120]
[354480561,1740525068556,-500.0,0.00047123,120]
[354480562,1740525068566,-151.121873,0.00047123,14]
[354480563,1740525068575,-500.0,0.00047123,120]
[354480564,1740525068584,-500.0,0.00047123,120]
[354480565,1740525068593,-500.0,0.00047123,120]
[354480566,1740525068602,-1716.09,0.00047123,120]
[354480567,1740525068611,-500.0,0.00047123,120]
[354480568,1740525068620,-500.0,0.00047123,120]
[354480569,1740525068630,-1821.6,0.00047123,120]
[354480570,1740525068639,-941.15,0.00047123,120]
[354480571,1740525068652,-500.0,0.00047123,120]
[354480572,1740525068661,-500.0,0.00047123,120]
[354480573,1740525068672,-500.0,0.00047123,120]
[354480574,1740525068681,-528.44,0.00047123,120]
[354480575,1740525068690,-500.0,0.00047123,120]
[354480576,1740525068700,-1239.32,0.00047123,120]
[354480577,1740525068709,-809.18,0.00047123,120]
[354480578,1740525068718,-1563.56,0.00047123,120]
[354480579,1740525068727,-1329.1,0.00047123,120]
[354480580,1740525068737,-500.0,0.00047123,120]
[354480581,1740525068746,-500.0,0.00047123,120]
[354480582,1740525068755,-2176.41,0.00047123,120]
[354480583,1740525068764,-500.0,0.00047123,120]
[354480584,1740525068773,-1038.76,0.00047123,120]
[354480585,1740525068783,-1046.05,0.00047123,120]
[354480586,1740525068792,-500.0,0.00047123,120]
[354480587,1740525068801,-2557.04,0.00047123,120]
[354480588,1740525068810,-500.0,0.00047123,120]
[354480589,1740525068819,-2237.87,0.00047123,120]
[354480590,1740525068829,-500.0,0.00047123,120]
[354480591,1740525068838,-500.0,0.00047123,120]
[354480592,1740525068847,-3102.5,0.00047123,120]
[354480593,1740525068856,-500.0,0.00047123,120]
[354480594,1740525068866,-500.0,0.00047123,120]
[354480595,1740525068876,-2180.56,0.00047123,120]
[354480596,1740525068885,-500.0,0.00047123,120]
[354480597,1740525068894,-500.0,0.00047123,120]
[354480598,1740525068905,-1055.16,0.00047123,120]
[354480599,1740525068914,-500.0,0.00047123,120]
[354480600,1740525068923,-151.0,0.00047123,14]
[354480601,1740525068933,-151.0,0.00047123,14]
[354480602,1740525068943,-700.04,0.00047123,120]
[354480603,1740525068952,-500.0,0.00047123,120]
[354480604,1740525068961,-932.23,0.00047123,120]
[354480605,1740525068971,-972.69,0.00047123,120]
[354480606,1740525068980,-500.0,0.00047123,120]
[354480607,1740525068989,-812.48,0.00047123,120]
[354480608,1740525068998,-1365.7,0.00047123,120]
[354480609,1740525069007,-221.17,0.00047123,7]